[Event "*** Titled Tuesday Blitz"]
[Site "Chess.com"]
[Date "2020.03.03"]
[Round "2"]
[White "AntonSmirnov"]
[Black "mitrabhaa"]
[Result "1-0"]
[WhiteElo "2926"]
[BlackElo "2630"]
[TimeControl "180+1"]
[EndTime "13:19:27 PST"]
[Termination "AntonSmirnov won by resignation"]

1. e4 {[%clk 0:03:00.9]} 1... c6 {[%clk 0:02:59.1]} 2. d4 {[%clk 0:03:00.7]}
2... d5 {[%clk 0:02:57.9]} 3. Nc3 {[%clk 0:02:59.3]} 3... dxe4 {[%clk
0:02:57.8]} 4. Nxe4 {[%clk 0:03:00.2]} 4... Nf6 {[%clk 0:02:58.7]} 5. Nxf6+
{[%clk 0:02:59.8]} 5... exf6 {[%clk 0:02:59.6]} 6. c3 {[%clk 0:02:59.5]} 6...
Bd6 {[%clk 0:02:59.9]} 7. Bd3 {[%clk 0:02:59.6]} 7... O-O {[%clk 0:03:00.3]} 8.
Qc2 {[%clk 0:02:59.4]} 8... Re8+ {[%clk 0:03:00.6]} 9. Ne2 {[%clk 0:02:59.5]}
9... h6 {[%clk 0:03:00.7]} 10. O-O {[%clk 0:02:59.6]} 10... Nd7 {[%clk
0:02:59.3]} 11. Bd2 {[%clk 0:02:59]} 11... Nf8 {[%clk 0:02:59.4]} 12. Rae1
{[%clk 0:02:58.6]} 12... Qc7 {[%clk 0:02:59.4]} 13. Ng3 {[%clk 0:02:57.7]} 13...
Bg4 {[%clk 0:02:59.3]} 14. Rxe8 {[%clk 0:02:56.5]} 14... Rxe8 {[%clk 0:02:58.9]}
15. Re1 {[%clk 0:02:56.7]} 15... Rxe1+ {[%clk 0:02:57.9]} 16. Bxe1 {[%clk
0:02:57.6]} 16... Qe7 {[%clk 0:02:55.6]} 17. Bd2 {[%clk 0:02:57.2]} 17... Be6
{[%clk 0:02:55.3]} 18. a3 {[%clk 0:02:54.9]} 18... Nd7 {[%clk 0:02:55.1]} 19.
Nf5 {[%clk 0:02:52.4]} 19... Bxf5 {[%clk 0:02:54.8]} 20. Bxf5 {[%clk 0:02:53.3]}
20... Qe2 {[%clk 0:02:41.3]} 21. Bd3 {[%clk 0:02:51.6]} 21... Qh5 {[%clk
0:02:37.7]} 22. g3 {[%clk 0:02:41.8]} 22... c5 {[%clk 0:02:17.1]} 23. Be3 {[%clk
0:02:28]} 23... cxd4 {[%clk 0:02:15.9]} 24. cxd4 {[%clk 0:02:27.6]} 24... Nb6
{[%clk 0:02:13.5]} 25. Be4 {[%clk 0:02:25.2]} 25... Nd5 {[%clk 0:02:04.9]} 26.
Bd2 {[%clk 0:02:22.1]} 26... Ne7 {[%clk 0:01:15.3]} 27. Bxb7 {[%clk 0:02:17]}
27... Qe2 {[%clk 0:01:15.1]} 28. Be4 {[%clk 0:02:13.7]} 28... f5 {[%clk
0:01:07.7]} 29. Bd3 {[%clk 0:02:12.5]} 29... Qf3 {[%clk 0:01:07.9]} 30. Bf1
{[%clk 0:02:07.2]} 30... Qd5 {[%clk 0:01:04.1]} 31. Bc3 {[%clk 0:02:05.5]} 31...
f4 {[%clk 0:01:01]} 32. Qe2 {[%clk 0:01:56.8]} 32... g5 {[%clk 0:00:38.5]} 33.
Bg2 {[%clk 0:01:55.5]} 33... Qf5 {[%clk 0:00:38.8]} 34. Be4 {[%clk 0:01:54.2]}
34... Qe6 {[%clk 0:00:38]} 35. Bd3 {[%clk 0:01:53]} 35... Qd5 {[%clk 0:00:35.4]}
36. Qe4 {[%clk 0:01:52]} 36... Qxe4 {[%clk 0:00:34.3]} 37. Bxe4 {[%clk
0:01:52.9]} 37... Kf8 {[%clk 0:00:34.7]} 38. g4 {[%clk 0:01:46.2]} 38... Nc8
{[%clk 0:00:33.6]} 39. f3 {[%clk 0:01:42.8]} 39... Ke7 {[%clk 0:00:33.8]} 40.
Kf2 {[%clk 0:01:42.3]} 40... Nb6 {[%clk 0:00:34.4]} 41. Bd2 {[%clk 0:01:39.5]}
41... Nc4 {[%clk 0:00:32.6]} 42. Bc1 {[%clk 0:01:39.2]} 42... Bc7 {[%clk
0:00:33.2]} 43. Ke2 {[%clk 0:01:39]} 43... Bb6 {[%clk 0:00:33]} 44. Kd3 {[%clk
0:01:37.9]} 44... Nd6 {[%clk 0:00:33.7]} 45. b4 {[%clk 0:01:34.6]} 45... a5
{[%clk 0:00:33.7]} 46. Bd2 {[%clk 0:01:33.3]} 46... axb4 {[%clk 0:00:31.3]} 47.
Bxb4 {[%clk 0:01:32.5]} 47... Kd7 {[%clk 0:00:32]} 48. a4 {[%clk 0:01:32.5]}
48... Ba7 {[%clk 0:00:30.7]} 49. h3 {[%clk 0:01:31.6]} 49... f6 {[%clk
0:00:28.9]} 50. Bc5 {[%clk 0:01:27]} 50... Bb8 {[%clk 0:00:28.2]} 51. a5 {[%clk
0:01:24.6]} 51... Nc8 {[%clk 0:00:28.3]} 52. Bf5+ {[%clk 0:01:22.9]} 52... Kc7
{[%clk 0:00:28.6]} 53. Bxc8 {[%clk 0:01:21.9]} 53... Kxc8 {[%clk 0:00:29.5]} 54.
Ke4 {[%clk 0:01:21.8]} 54... Kb7 {[%clk 0:00:28.9]} 55. Kf5 {[%clk 0:01:21.3]}
55... Ka6 {[%clk 0:00:29.3]} 56. Kxf6 {[%clk 0:01:20.4]} 1-0

[Event "*** Titled Tuesday Blitz"]
[Site "Chess.com"]
[Date "2020.03.03"]
[Round "2"]
[White "icychess54"]
[Black "RoelandPruijssers"]
[Result "0-1"]
[WhiteElo "2201"]
[BlackElo "2683"]
[TimeControl "180+1"]
[EndTime "13:19:30 PST"]
[Termination "RoelandPruijssers won by checkmate"]

1. c4 {[%clk 0:03:00.9]} 1... f5 {[%clk 0:02:50.9]} 2. Nf3 {[%clk 0:03:00.1]}
2... Nf6 {[%clk 0:02:46.6]} 3. Nc3 {[%clk 0:03:00.2]} 3... d6 {[%clk 0:02:43.3]}
4. e3 {[%clk 0:03:00.5]} 4... e5 {[%clk 0:02:40.2]} 5. b4 {[%clk 0:02:56.6]}
5... e4 {[%clk 0:02:35.7]} 6. Nd4 {[%clk 0:02:53.9]} 6... c5 {[%clk 0:02:34.7]}
7. Nc2 {[%clk 0:02:52.8]} 7... Nc6 {[%clk 0:02:30.7]} 8. a3 {[%clk 0:02:40.2]}
8... Ng4 {[%clk 0:02:16.2]} 9. Be2 {[%clk 0:02:25.2]} 9... Nce5 {[%clk
0:02:10.7]} 10. h3 {[%clk 0:02:10.9]} 10... Qh4 {[%clk 0:01:54.8]} 11. O-O
{[%clk 0:02:10.9]} 11... h5 {[%clk 0:01:54.5]} 12. f4 {[%clk 0:01:59.6]} 12...
Qg3 {[%clk 0:01:31.8]} 13. Bxg4 {[%clk 0:01:30.9]} 13... hxg4 {[%clk 0:01:12.7]}
14. fxe5 {[%clk 0:01:30]} 14... gxh3 {[%clk 0:01:12.1]} 15. Qe2 {[%clk
0:01:22.3]} 15... Qxe5 {[%clk 0:01:03.9]} 16. Bb2 {[%clk 0:01:11.8]} 16... Be6
{[%clk 0:00:49.3]} 17. Rf4 {[%clk 0:01:00.1]} 17... hxg2 {[%clk 0:00:45.9]} 18.
Na4 {[%clk 0:00:57.2]} 18... O-O-O {[%clk 0:00:15.1]} 19. Bxe5 {[%clk
0:00:55.5]} 19... dxe5 {[%clk 0:00:16]} 20. Rf2 {[%clk 0:00:52.5]} 20... cxb4
{[%clk 0:00:13.8]} 21. axb4 {[%clk 0:00:49.6]} 21... f4 {[%clk 0:00:13.7]} 22.
exf4 {[%clk 0:00:46.1]} 22... exf4 {[%clk 0:00:11.5]} 23. Qxe4 {[%clk
0:00:45.3]} 23... Bh3 {[%clk 0:00:09.8]} 24. Nc5 {[%clk 0:00:34.7]} 24... Bxc5
{[%clk 0:00:09.1]} 25. bxc5 {[%clk 0:00:35.2]} 25... Bd7 {[%clk 0:00:07.2]} 26.
Rxa7 {[%clk 0:00:32.6]} 26... Bc6 {[%clk 0:00:07.6]} 27. Qf5+ {[%clk 0:00:23.3]}
27... Kb8 {[%clk 0:00:07.6]} 28. Rxg2 {[%clk 0:00:23.4]} 28... Kxa7 {[%clk
0:00:06.9]} 29. Rxg7 {[%clk 0:00:17]} 29... Rh1+ {[%clk 0:00:06.5]} 30. Kf2
{[%clk 0:00:16.7]} 30... Rxd2# {[%clk 0:00:06.9]} 0-1

[Event "*** Titled Tuesday Blitz"]
[Site "Chess.com"]
[Date "2020.03.03"]
[Round "2"]
[White "Godzillator"]
[Black "violetflower04"]
[Result "1-0"]
[WhiteElo "2401"]
[BlackElo "2026"]
[TimeControl "180+1"]
[EndTime "13:19:30 PST"]
[Termination "Godzillator won on time"]

1. d4 {[%clk 0:03:00.9]} 1... Nf6 {[%clk 0:02:59.1]} 2. c4 {[%clk 0:03:01.2]}
2... e6 {[%clk 0:02:58.7]} 3. Nc3 {[%clk 0:03:01.6]} 3... Bb4 {[%clk 0:02:58.6]}
4. Qc2 {[%clk 0:03:02.1]} 4... O-O {[%clk 0:02:57.3]} 5. a3 {[%clk 0:03:01.9]}
5... Bxc3+ {[%clk 0:02:56.7]} 6. Qxc3 {[%clk 0:03:02.7]} 6... b6 {[%clk
0:02:54.6]} 7. Bg5 {[%clk 0:03:02]} 7... h6 {[%clk 0:02:52.8]} 8. Bh4 {[%clk
0:03:01.6]} 8... Ba6 {[%clk 0:02:51.5]} 9. e3 {[%clk 0:03:01.3]} 9... c5 {[%clk
0:02:43.2]} 10. dxc5 {[%clk 0:02:59.5]} 10... bxc5 {[%clk 0:02:42]} 11. Bd3
{[%clk 0:02:59.6]} 11... Nc6 {[%clk 0:02:38.5]} 12. Ne2 {[%clk 0:02:58.7]} 12...
d6 {[%clk 0:02:21.4]} 13. O-O {[%clk 0:02:58.3]} 13... Ne5 {[%clk 0:02:15.1]}
14. Rfd1 {[%clk 0:02:52.7]} 14... Rb8 {[%clk 0:02:01.7]} 15. Bg3 {[%clk
0:02:48.9]} 15... Nxd3 {[%clk 0:01:52.3]} 16. Qxd3 {[%clk 0:02:48.1]} 16... Rxb2
{[%clk 0:01:39.4]} 17. Bxd6 {[%clk 0:02:44.5]} 17... Re8 {[%clk 0:01:32]} 18.
Ng3 {[%clk 0:02:43]} 18... Qa5 {[%clk 0:01:24.4]} 19. Be5 {[%clk 0:02:40.2]}
19... Rxf2 {[%clk 0:01:08.1]} 20. Kxf2 {[%clk 0:02:28.6]} 20... Ng4+ {[%clk
0:01:07.6]} 21. Kg1 {[%clk 0:02:27.9]} 21... Nxe5 {[%clk 0:01:07.6]} 22. Qd2
{[%clk 0:02:17.9]} 22... Qxd2 {[%clk 0:00:56.5]} 23. Rxd2 {[%clk 0:02:17.8]}
23... Nxc4 {[%clk 0:00:56.9]} 24. Rd7 {[%clk 0:02:17.6]} 24... Nxe3 {[%clk
0:00:51]} 25. Rxa7 {[%clk 0:02:17.4]} 25... Bd3 {[%clk 0:00:46.8]} 26. Rc1
{[%clk 0:02:11.8]} 26... Rc8 {[%clk 0:00:45]} 27. Nh5 {[%clk 0:01:57.9]} 27...
c4 {[%clk 0:00:43.9]} 28. Nf4 {[%clk 0:01:58.1]} 28... Be4 {[%clk 0:00:41.9]}
29. g3 {[%clk 0:01:54.6]} 29... g5 {[%clk 0:00:37.1]} 30. Ne2 {[%clk 0:01:54.3]}
30... Bd3 {[%clk 0:00:32.9]} 31. Nc3 {[%clk 0:01:53.5]} 31... Nd5 {[%clk
0:00:29]} 32. Rd7 {[%clk 0:01:50]} 32... Nf6 {[%clk 0:00:18.4]} 33. Rd6 {[%clk
0:01:39.7]} 33... Rb8 {[%clk 0:00:17.7]} 34. a4 {[%clk 0:01:37.4]} 34... Rb2
{[%clk 0:00:16.9]} 35. Nd1 {[%clk 0:01:34.5]} 35... Rd2 {[%clk 0:00:15.6]} 36.
Nf2 {[%clk 0:01:34.2]} 36... Rxf2 {[%clk 0:00:14.2]} 37. Kxf2 {[%clk 0:01:32.9]}
37... Ne4+ {[%clk 0:00:14]} 38. Ke3 {[%clk 0:01:33]} 38... Nxd6 {[%clk
0:00:14.9]} 39. a5 {[%clk 0:01:33.2]} 39... Nb5 {[%clk 0:00:14.1]} 40. a6 {[%clk
0:01:32.8]} 40... Kf8 {[%clk 0:00:12]} 41. Ra1 {[%clk 0:01:30.8]} 41... Na7
{[%clk 0:00:11.8]} 42. Ra4 {[%clk 0:01:23.5]} 42... Ke7 {[%clk 0:00:08.6]} 43.
Rb4 {[%clk 0:01:24]} 43... Kd6 {[%clk 0:00:08]} 44. Rb7 {[%clk 0:01:24.2]} 44...
Nc6 {[%clk 0:00:06.1]} 45. Rxf7 {[%clk 0:01:20]} 45... Kd5 {[%clk 0:00:04.3]}
46. a7 {[%clk 0:01:19.2]} 46... Nxa7 {[%clk 0:00:04.3]} 47. Rxa7 {[%clk
0:01:19.1]} 47... Bf5 {[%clk 0:00:03.9]} 48. Ra5+ {[%clk 0:01:17.5]} 48... Kd6
{[%clk 0:00:03]} 49. Kd4 {[%clk 0:01:17.7]} 49... Bd3 {[%clk 0:00:01.8]} 50.
Ra6+ {[%clk 0:01:17.4]} 50... Ke7 {[%clk 0:00:01.6]} 51. Ke5 {[%clk 0:01:15.7]}
1-0

[Event "*** Titled Tuesday Blitz"]
[Site "Chess.com"]
[Date "2020.03.03"]
[Round "2"]
[White "Snegokhod"]
[Black "reigningmvp"]
[Result "1-0"]
[WhiteElo "2618"]
[BlackElo "2324"]
[TimeControl "180+1"]
[EndTime "13:19:35 PST"]
[Termination "Snegokhod won by resignation"]

1. e4 {[%clk 0:03:00.9]} 1... e5 {[%clk 0:02:59.3]} 2. Nf3 {[%clk 0:03:00.3]}
2... Nc6 {[%clk 0:02:59.8]} 3. Bb5 {[%clk 0:02:59.5]} 3... a6 {[%clk 0:02:58.6]}
4. Bxc6 {[%clk 0:02:59.4]} 4... dxc6 {[%clk 0:02:59.1]} 5. Nc3 {[%clk
0:02:59.9]} 5... Bd6 {[%clk 0:02:50.6]} 6. d4 {[%clk 0:02:59]} 6... exd4 {[%clk
0:02:49.5]} 7. Qxd4 {[%clk 0:02:59.9]} 7... f6 {[%clk 0:02:49.7]} 8. Be3 {[%clk
0:02:59.3]} 8... Ne7 {[%clk 0:02:49.6]} 9. O-O-O {[%clk 0:02:58.7]} 9... Ng6
{[%clk 0:02:49.6]} 10. h4 {[%clk 0:02:53.7]} 10... Qe7 {[%clk 0:02:48.6]} 11. h5
{[%clk 0:02:53.6]} 11... Ne5 {[%clk 0:02:47.8]} 12. Nxe5 {[%clk 0:02:51.1]}
12... Bxe5 {[%clk 0:02:47.3]} 13. Qd2 {[%clk 0:02:50.7]} 13... Be6 {[%clk
0:02:45.9]} 14. Bf4 {[%clk 0:02:50.4]} 14... Rd8 {[%clk 0:02:44.8]} 15. Qxd8+
{[%clk 0:02:49]} 15... Qxd8 {[%clk 0:02:44]} 16. Rxd8+ {[%clk 0:02:49.5]} 16...
Kxd8 {[%clk 0:02:44.7]} 17. Bxe5 {[%clk 0:02:49.6]} 17... fxe5 {[%clk
0:02:45.4]} 18. h6 {[%clk 0:02:44.8]} 18... g6 {[%clk 0:02:44.1]} 19. Kd2 {[%clk
0:02:44.6]} 19... Rf8 {[%clk 0:02:43.9]} 20. Ke3 {[%clk 0:02:44.5]} 20... Ke7
{[%clk 0:02:44.6]} 21. g3 {[%clk 0:02:40.3]} 21... g5 {[%clk 0:02:42.1]} 22. f3
{[%clk 0:02:39.6]} 22... Rf6 {[%clk 0:02:38.7]} 23. Rh5 {[%clk 0:02:35.2]} 23...
Rg6 {[%clk 0:02:38]} 24. g4 {[%clk 0:02:23.6]} 24... Rg8 {[%clk 0:02:32.2]} 25.
a3 {[%clk 0:02:21.9]} 25... Bf7 {[%clk 0:02:32]} 26. Rh2 {[%clk 0:02:20.3]}
26... Rd8 {[%clk 0:02:31.6]} 27. Rh1 {[%clk 0:02:11.5]} 27... Kf6 {[%clk
0:02:30.4]} 28. Ne2 {[%clk 0:02:09.3]} 28... c5 {[%clk 0:02:17.6]} 29. Ng3
{[%clk 0:02:06.9]} 29... c4 {[%clk 0:02:16.5]} 30. Nf5 {[%clk 0:02:04.1]} 30...
c5 {[%clk 0:02:08.1]} 31. c3 {[%clk 0:01:56.3]} 31... Rd3+ {[%clk 0:02:06.9]}
32. Ke2 {[%clk 0:01:56]} 32... b5 {[%clk 0:02:06.2]} 33. Rd1 {[%clk 0:01:53.7]}
33... Rxd1 {[%clk 0:02:04.6]} 34. Kxd1 {[%clk 0:01:53.2]} 34... Be6 {[%clk
0:02:03.7]} 35. Nd6 {[%clk 0:01:46.8]} 35... Kg6 {[%clk 0:01:53.8]} 36. Nb7
{[%clk 0:01:45.4]} 36... Kxh6 {[%clk 0:01:53.9]} 37. Nxc5 {[%clk 0:01:45.3]}
37... Bc8 {[%clk 0:01:53.9]} 38. a4 {[%clk 0:01:41.4]} 38... Kg6 {[%clk
0:01:52.3]} 39. axb5 {[%clk 0:01:26]} 39... axb5 {[%clk 0:01:51.6]} 40. b3
{[%clk 0:01:26.1]} 40... cxb3 {[%clk 0:01:43]} 41. Nxb3 {[%clk 0:01:25.4]} 41...
Kf6 {[%clk 0:01:43.3]} 42. Nc5 {[%clk 0:01:19.7]} 42... Ke7 {[%clk 0:01:41]} 43.
Kc2 {[%clk 0:01:16.8]} 43... Kd6 {[%clk 0:01:40.8]} 44. Nd3 {[%clk 0:01:16.2]}
44... Be6 {[%clk 0:01:40]} 45. Kd2 {[%clk 0:01:06.1]} 45... Bf7 {[%clk
0:01:38.7]} 46. Nf2 {[%clk 0:01:02.1]} 46... Bg6 {[%clk 0:01:32.1]} 47. Nh3
{[%clk 0:01:01.2]} 47... h6 {[%clk 0:01:31.8]} 48. Nf2 {[%clk 0:00:59.1]} 48...
Bf7 {[%clk 0:01:31.4]} 49. Ke3 {[%clk 0:00:55.5]} 49... Kc5 {[%clk 0:01:27.7]}
50. Nd3+ {[%clk 0:00:54.7]} 50... Kd6 {[%clk 0:01:27.9]} 51. Nb4 {[%clk
0:00:51.7]} 51... Bc4 {[%clk 0:01:25.7]} 52. Nc2 {[%clk 0:00:47.5]} 52... Bf7
{[%clk 0:01:22.1]} 53. Kd2 {[%clk 0:00:47]} 53... h5 {[%clk 0:01:22.5]} 54. gxh5
{[%clk 0:00:45.5]} 54... Bxh5 {[%clk 0:01:22.7]} 55. Ke2 {[%clk 0:00:45.3]}
55... Ke7 {[%clk 0:01:20.6]} 56. Ne3 {[%clk 0:00:44.4]} 56... Be8 {[%clk
0:01:14.8]} 57. Kf2 {[%clk 0:00:44.3]} 57... Bd7 {[%clk 0:01:10.4]} 58. Kg3
{[%clk 0:00:44.5]} 58... Be6 {[%clk 0:01:08.9]} 59. Ng4 {[%clk 0:00:41.5]} 59...
Bxg4 {[%clk 0:01:08.6]} 60. Kxg4 {[%clk 0:00:41.2]} 60... Kf6 {[%clk 0:01:09]}
61. Kh5 {[%clk 0:00:41.2]} 1-0

[Event "*** Titled Tuesday Blitz"]
[Site "Chess.com"]
[Date "2020.03.03"]
[Round "2"]
[White "AlleyOoper"]
[Black "Sanan_Sjugirov"]
[Result "1-0"]
[WhiteElo "2618"]
[BlackElo "2831"]
[TimeControl "180+1"]
[EndTime "13:19:39 PST"]
[Termination "AlleyOoper won on time"]

1. d4 {[%clk 0:03:00.9]} 1... g6 {[%clk 0:02:58.8]} 2. Bf4 {[%clk 0:02:59.8]}
2... Bg7 {[%clk 0:02:58.8]} 3. Nc3 {[%clk 0:03:00.1]} 3... d6 {[%clk 0:02:56.9]}
4. e4 {[%clk 0:03:00.1]} 4... Nd7 {[%clk 0:02:51.5]} 5. Nf3 {[%clk 0:02:59.2]}
5... e5 {[%clk 0:02:47.2]} 6. dxe5 {[%clk 0:02:59.4]} 6... dxe5 {[%clk
0:02:48.1]} 7. Bg5 {[%clk 0:02:55.5]} 7... Ngf6 {[%clk 0:02:45.3]} 8. Bc4 {[%clk
0:02:52.2]} 8... O-O {[%clk 0:02:44.1]} 9. Qe2 {[%clk 0:02:50.3]} 9... h6 {[%clk
0:02:41.6]} 10. Bh4 {[%clk 0:02:49.7]} 10... c6 {[%clk 0:02:40.6]} 11. O-O
{[%clk 0:02:43]} 11... Qe8 {[%clk 0:02:35.8]} 12. a4 {[%clk 0:02:41.4]} 12... a5
{[%clk 0:02:33.2]} 13. Rfd1 {[%clk 0:02:40.5]} 13... Nh5 {[%clk 0:02:28.1]} 14.
Rd6 {[%clk 0:02:27.7]} 14... Kh7 {[%clk 0:02:00.1]} 15. Rad1 {[%clk 0:02:24.1]}
15... Nf4 {[%clk 0:01:36.7]} 16. Qe3 {[%clk 0:02:20.1]} 16... f6 {[%clk
0:01:12]} 17. Bg3 {[%clk 0:02:10.7]} 17... Nh5 {[%clk 0:01:10.3]} 18. Nh4 {[%clk
0:01:04.6]} 18... Qe7 {[%clk 0:01:05.6]} 19. Be6 {[%clk 0:00:40.3]} 19... Nb6
{[%clk 0:00:19.7]} 20. Nxg6 {[%clk 0:00:28.5]} 20... Kxg6 {[%clk 0:00:17]} 21.
Bf5+ {[%clk 0:00:28.6]} 21... Bxf5 {[%clk 0:00:11.8]} 22. exf5+ {[%clk
0:00:28.6]} 22... Kh7 {[%clk 0:00:10.7]} 23. Qxb6 {[%clk 0:00:26.6]} 23... Rf7
{[%clk 0:00:02.7]} 24. Ne4 {[%clk 0:00:16.6]} 24... Qe8 {[%clk 0:00:01.7]} 25.
Qe3 {[%clk 0:00:11.3]} 1-0

[Event "*** Titled Tuesday Blitz"]
[Site "Chess.com"]
[Date "2020.03.03"]
[Round "2"]
[White "Azeryahu"]
[Black "malandragem"]
[Result "0-1"]
[WhiteElo "2807"]
[BlackElo "2605"]
[TimeControl "180+1"]
[EndTime "13:19:40 PST"]
[Termination "malandragem won on time"]

1. Nf3 {[%clk 0:03:00.5]} 1... Nf6 {[%clk 0:02:53.9]} 2. b3 {[%clk 0:02:59.8]}
2... g6 {[%clk 0:02:49.2]} 3. Bb2 {[%clk 0:02:59.9]} 3... Bg7 {[%clk 0:02:49.7]}
4. g3 {[%clk 0:03:00.4]} 4... O-O {[%clk 0:02:48.4]} 5. c4 {[%clk 0:03:01]} 5...
b6 {[%clk 0:02:41.2]} 6. Bg2 {[%clk 0:03:00.8]} 6... Bb7 {[%clk 0:02:36.2]} 7.
d4 {[%clk 0:03:00.7]} 7... d5 {[%clk 0:02:31.8]} 8. cxd5 {[%clk 0:02:59.3]} 8...
Bxd5 {[%clk 0:02:22.7]} 9. O-O {[%clk 0:02:58.4]} 9... Bb7 {[%clk 0:02:19.4]}
10. Nc3 {[%clk 0:02:56.3]} 10... e6 {[%clk 0:02:17.8]} 11. Rc1 {[%clk
0:02:38.9]} 11... Na6 {[%clk 0:02:16.6]} 12. Qc2 {[%clk 0:02:23.4]} 12... Rc8
{[%clk 0:02:11.5]} 13. Rfd1 {[%clk 0:02:21.3]} 13... Qe7 {[%clk 0:02:08.1]} 14.
Nb5 {[%clk 0:02:21.4]} 14... Nb4 {[%clk 0:02:04.4]} 15. Qd2 {[%clk 0:01:59]}
15... a6 {[%clk 0:02:04.5]} 16. Ba3 {[%clk 0:01:47.6]} 16... c5 {[%clk 0:01:58]}
17. dxc5 {[%clk 0:01:46.1]} 17... Ne4 {[%clk 0:01:56.9]} 18. Qxb4 {[%clk
0:01:33]} 18... bxc5 {[%clk 0:01:51.9]} 19. Qa5 {[%clk 0:00:45.8]} 19... axb5
{[%clk 0:01:51.8]} 20. Qxb5 {[%clk 0:00:46.7]} 20... Nc3 {[%clk 0:01:37.4]} 21.
Rxc3 {[%clk 0:00:46]} 21... Bxc3 {[%clk 0:01:36.8]} 22. Rd7 {[%clk 0:00:43]}
22... Ba6 {[%clk 0:01:24]} 23. Qa4 {[%clk 0:00:28.8]} 23... Qe8 {[%clk
0:01:24.2]} 24. Ng5 {[%clk 0:00:25.3]} 24... Bg7 {[%clk 0:01:17.6]} 25. Ne4
{[%clk 0:00:21.7]} 25... Ra8 {[%clk 0:01:12.7]} 26. Qc6 {[%clk 0:00:06.8]} 26...
Bxe2 {[%clk 0:01:01.7]} 27. Bxc5 {[%clk 0:00:06.6]} 27... Rc8 {[%clk 0:00:57.4]}
28. Qa4 {[%clk 0:00:02.4]} 28... Ra8 {[%clk 0:00:50.5]} 29. Qc6 {[%clk
0:00:02.6]} 29... Ra6 {[%clk 0:00:44]} 30. Qc7 {[%clk 0:00:01.3]} 30... Bb5
{[%clk 0:00:39.1]} 31. h4 {[%clk 0:00:01.5]} 31... Qxd7 {[%clk 0:00:36.2]} 32.
Qf4 {[%clk 0:00:01.4]} 32... Rc8 {[%clk 0:00:33]} 0-1

[Event "*** Titled Tuesday Blitz"]
[Site "Chess.com"]
[Date "2020.03.03"]
[Round "2"]
[White "Saitama_Hero"]
[Black "Carnivoras"]
[Result "1-0"]
[WhiteElo "2297"]
[BlackElo "2677"]
[TimeControl "180+1"]
[EndTime "13:19:42 PST"]
[Termination "Saitama_Hero won by resignation"]

1. Nf3 {[%clk 0:03:00.9]} 1... d5 {[%clk 0:02:59.5]} 2. c4 {[%clk 0:02:59.7]}
2... c6 {[%clk 0:02:59.1]} 3. e3 {[%clk 0:02:59.7]} 3... Nf6 {[%clk 0:02:58.6]}
4. b3 {[%clk 0:02:57.7]} 4... Bg4 {[%clk 0:02:57.7]} 5. Bb2 {[%clk 0:02:57.4]}
5... Nbd7 {[%clk 0:02:57.8]} 6. Be2 {[%clk 0:02:57.6]} 6... e6 {[%clk
0:02:57.6]} 7. O-O {[%clk 0:02:58.1]} 7... Be7 {[%clk 0:02:57.3]} 8. cxd5 {[%clk
0:02:53.4]} 8... exd5 {[%clk 0:02:56.7]} 9. Nd4 {[%clk 0:02:52.3]} 9... Bxe2
{[%clk 0:02:52.6]} 10. Qxe2 {[%clk 0:02:53.2]} 10... O-O {[%clk 0:02:52.1]} 11.
Nf5 {[%clk 0:02:51.4]} 11... Re8 {[%clk 0:02:51.6]} 12. Nxe7+ {[%clk 0:02:41.1]}
12... Qxe7 {[%clk 0:02:51.2]} 13. d3 {[%clk 0:02:41.1]} 13... Ne5 {[%clk
0:02:49.1]} 14. Nd2 {[%clk 0:02:39.3]} 14... Qe6 {[%clk 0:02:45.5]} 15. h3
{[%clk 0:02:36.4]} 15... Ng6 {[%clk 0:02:43.3]} 16. Nf3 {[%clk 0:02:35.1]} 16...
a5 {[%clk 0:02:35.2]} 17. Rfc1 {[%clk 0:02:13.8]} 17... a4 {[%clk 0:02:33.5]}
18. Qc2 {[%clk 0:02:08]} 18... Nd7 {[%clk 0:02:07.6]} 19. Nd4 {[%clk 0:02:01.5]}
19... Qf6 {[%clk 0:01:51]} 20. bxa4 {[%clk 0:01:59]} 20... Qd8 {[%clk 0:01:40]}
21. Qb3 {[%clk 0:01:53.9]} 21... Qb6 {[%clk 0:01:32.2]} 22. Rab1 {[%clk
0:01:49.4]} 22... Qa6 {[%clk 0:01:30.2]} 23. Nf5 {[%clk 0:01:45.3]} 23... Nge5
{[%clk 0:01:07.4]} 24. f4 {[%clk 0:00:27.7]} 24... Nxd3 {[%clk 0:01:00.9]} 25.
Nxg7 {[%clk 0:00:20.1]} 25... N7c5 {[%clk 0:00:30.5]} 26. Qc3 {[%clk 0:00:19]}
26... Nxa4 {[%clk 0:00:28.1]} 27. Qf6 {[%clk 0:00:16.3]} 27... Naxb2 {[%clk
0:00:08.1]} 28. Nf5 {[%clk 0:00:12.9]} 1-0

[Event "*** Titled Tuesday Blitz"]
[Site "Chess.com"]
[Date "2020.03.03"]
[Round "2"]
[White "BeanScreen"]
[Black "Sebastian"]
[Result "0-1"]
[WhiteElo "2646"]
[BlackElo "3007"]
[TimeControl "180+1"]
[EndTime "13:19:43 PST"]
[Termination "Sebastian won by resignation"]

1. e4 {[%clk 0:03:00.8]} 1... c5 {[%clk 0:02:59.6]} 2. Nf3 {[%clk 0:03:00.7]}
2... d6 {[%clk 0:02:59.9]} 3. d4 {[%clk 0:03:01.2]} 3... cxd4 {[%clk 0:02:59.9]}
4. Nxd4 {[%clk 0:03:02.1]} 4... Nf6 {[%clk 0:03:00.2]} 5. Nc3 {[%clk 0:03:02.9]}
5... a6 {[%clk 0:03:00]} 6. Be3 {[%clk 0:03:03.6]} 6... e5 {[%clk 0:02:59.5]} 7.
Nb3 {[%clk 0:03:04.4]} 7... Be6 {[%clk 0:02:59.4]} 8. h3 {[%clk 0:03:05]} 8...
Be7 {[%clk 0:02:56.5]} 9. f4 {[%clk 0:03:05.4]} 9... exf4 {[%clk 0:02:46.3]} 10.
Bxf4 {[%clk 0:03:06.3]} 10... Nc6 {[%clk 0:02:46.9]} 11. Qe2 {[%clk 0:03:06.5]}
11... Rc8 {[%clk 0:02:43.5]} 12. O-O-O {[%clk 0:03:06.7]} 12... Qc7 {[%clk
0:02:35.5]} 13. g4 {[%clk 0:03:06.1]} 13... Ne5 {[%clk 0:02:33.3]} 14. g5 {[%clk
0:03:03.8]} 14... Nfd7 {[%clk 0:02:32.4]} 15. Nd5 {[%clk 0:02:52]} 15... Bxd5
{[%clk 0:02:31.7]} 16. exd5 {[%clk 0:02:52.9]} 16... O-O {[%clk 0:02:28.1]} 17.
h4 {[%clk 0:02:53.2]} 17... Rfe8 {[%clk 0:02:24.5]} 18. h5 {[%clk 0:02:51.1]}
18... Bf8 {[%clk 0:02:06.9]} 19. Qg2 {[%clk 0:02:51.2]} 19... g6 {[%clk
0:02:00.5]} 20. Bd3 {[%clk 0:02:13.5]} 20... Bg7 {[%clk 0:01:52.9]} 21. Qh2
{[%clk 0:02:09.4]} 21... Nxd3+ {[%clk 0:01:29.6]} 22. Rxd3 {[%clk 0:02:09.5]}
22... Qc4 {[%clk 0:01:29.7]} 23. Kb1 {[%clk 0:01:53.3]} 23... Qe4 {[%clk
0:01:01.7]} 24. hxg6 {[%clk 0:01:39.1]} 24... Qxg6 {[%clk 0:01:01]} 25. Rh3
{[%clk 0:01:37]} 25... Nf8 {[%clk 0:00:39]} 26. Bxd6 {[%clk 0:01:36.6]} 26...
Red8 {[%clk 0:00:29.4]} 27. Bxf8 {[%clk 0:01:35.3]} 27... Kxf8 {[%clk
0:00:29.5]} 28. Rxh7 {[%clk 0:01:25.6]} 28... Rxd5 {[%clk 0:00:28.7]} 29. Rh3
{[%clk 0:00:20.4]} 29... Rxg5 {[%clk 0:00:27.6]} 30. Rf3 {[%clk 0:00:17.7]}
30... Rg2 {[%clk 0:00:24.7]} 31. Rxf7+ {[%clk 0:00:10.4]} 31... Kxf7 {[%clk
0:00:22.7]} 32. Rf1+ {[%clk 0:00:08.5]} 32... Kg8 {[%clk 0:00:22.5]} 0-1